[Event "FIDE Grand Swiss 2023"]
[Site "Villa Marina, Douglas, Isle of Man"]
[Date "2023.11.01"]
[Round "7.12"]
[White "Rapport, Richard"]
[Black "Bartel, Mateusz"]
[Result "1-0"]
[WhiteElo "2752"]
[BlackElo "2651"]
[EventDate "2023.10.25"]
[ECO "C02"]
[PlyCount "83"]
[BlackClock "00:05:27"]
[BlackFideId "1112635"]
[TimeControl "40/100 + 20/50 + 15 + 30s/move"]
[WhiteClock "00:08:03"]
[WhiteFideId "738590"]

1.e4 {[%clk 01:40:20][%emt 00:00:38]} 1...e6 {[%clk 01:40:52][%emt 00:00:09]} 
2.d4 {[%clk 01:40:21][%emt 00:00:30]} 2...d5 {[%clk 01:41:16][%emt 00:00:05]} 
3.e5 {[%clk 01:40:42][%emt 00:00:10]} 3...c5 {[%clk 01:41:38][%emt 00:00:07]} 
4.c3 {[%clk 01:41:06][%emt 00:00:06]} 4...Nc6 {[%clk 01:42:02][%emt 00:00:05]} 
5.Nf3 {[%clk 01:41:31][%emt 00:00:05]} 5...Bd7 {[%clk 01:42:27][%emt 00:00:06]} 
6.Be2 {[%clk 01:41:11][%emt 00:00:51]} 6...Rc8 {[%clk 01:42:43][%emt 00:00:13]} 
7.O-O {[%clk 01:39:52][%emt 00:01:49]} 7...h6 {[%clk 01:42:24][%emt 00:00:50]} 
8.Kh1 {[%clk 01:34:25][%emt 00:05:57]} 8...a6 {[%clk 01:37:17][%emt 00:05:37]} 
9.Na3 {[%clk 01:25:19][%emt 00:09:35]} 9...cxd4 {[%clk 01:33:47][%emt 00:04:00]} 
10.cxd4 {[%clk 01:25:25][%emt 00:00:24]} 10...Bxa3 {[%clk 01:33:52][%emt
00:00:25]} 11.bxa3 {[%clk 01:25:51][%emt 00:00:05]} 11...Nge7 {[%clk
01:34:14][%emt 00:00:07]} 12.Rb1 {[%clk 01:23:40][%emt 00:02:42]} 12...Na5 
{[%clk 01:34:10][%emt 00:00:34]} 13.a4 {[%clk 01:23:16][%emt 00:00:54]} 
13...Bc6 {[%clk 01:25:19][%emt 00:09:20]} 14.Bd3 {[%clk 01:16:24][%emt
00:07:21]} 14...Nc4 {[%clk 01:19:33][%emt 00:06:17]} 15.Bc2 {[%clk
01:12:14][%emt 00:04:40]} 15...Nf5 {[%clk 01:11:46][%emt 00:08:16]} 16.Ng1 
{[%clk 00:59:56][%emt 00:12:49]} 16...O-O {[%clk 01:02:04][%emt 00:10:12]} 
17.Qd3 {[%clk 00:52:49][%emt 00:07:37]} 17...f6 {[%clk 00:30:53][%emt 00:31:40]} 
18.g4 {[%clk 00:46:04][%emt 00:07:16]} 18...fxe5 {[%clk 00:26:16][%emt
00:05:06]} 19.gxf5 {[%clk 00:45:22][%emt 00:01:13]} 19...exf5 {[%clk
00:26:39][%emt 00:00:07]} 20.dxe5 {[%clk 00:34:44][%emt 00:11:08]} 20...d4+ 
{[%clk 00:26:33][%emt 00:00:35]} 21.f3 {[%clk 00:35:09][%emt 00:00:06]} 
21...Nxe5 {[%clk 00:26:38][%emt 00:00:24]} 22.Qe2 {[%clk 00:35:30][%emt
00:00:09]} 22...Re8 {[%clk 00:24:08][%emt 00:03:01]} 23.Qg2 {[%clk
00:31:22][%emt 00:04:38]} 23...Qf6 {[%clk 00:22:59][%emt 00:01:39]} 24.Bf4 
{[%clk 00:25:09][%emt 00:06:43]} 24...Ng4 {[%clk 00:22:47][%emt 00:00:42]} 
25.Bb3+ {[%clk 00:20:48][%emt 00:04:51]} 25...Kh8 {[%clk 00:22:58][%emt
00:00:18]} 26.Rbc1 {[%clk 00:21:00][%emt 00:00:19]} 26...Ne3 {[%clk
00:22:53][%emt 00:00:35]} 27.Bxe3 {[%clk 00:21:26][%emt 00:00:04]} 27...Rxe3 
{[%clk 00:22:07][%emt 00:01:16]} 28.Bd5 {[%clk 00:19:44][%emt 00:02:12]} 
28...Rce8 {[%clk 00:21:07][%emt 00:01:30]} 29.Bxc6 {[%clk 00:18:29][%emt
00:01:46]} 29...bxc6 {[%clk 00:21:35][%emt 00:00:02]} 30.Qc2 {[%clk
00:17:52][%emt 00:01:01]} 30...d3 {[%clk 00:17:12][%emt 00:04:59]} 31.Qc4 
{[%clk 00:15:46][%emt 00:02:33]} 31...f4 {[%clk 00:10:52][%emt 00:06:52]} 
32.Rf2 {[%clk 00:14:25][%emt 00:01:51]} 32...Rd8 {[%clk 00:08:28][%emt
00:02:54]} 33.Rd2 {[%clk 00:13:13][%emt 00:01:42]} 33...Qe5 {[%clk
00:07:47][%emt 00:01:10]} 34.Rcd1 {[%clk 00:12:33][%emt 00:01:10]} 34...Re1 
{[%clk 00:06:43][%emt 00:01:35]} 35.Rxe1 {[%clk 00:12:20][%emt 00:00:43]} 
35...Qxe1 {[%clk 00:06:54][%emt 00:00:20]} 36.Rxd3 {[%clk 00:12:43][%emt
00:00:06]} 36...Rxd3 {[%clk 00:06:06][%emt 00:01:18]} 37.Qxd3 {[%clk
00:13:08][%emt 00:00:04]} 37...a5 {[%clk 00:06:31][%emt 00:00:05]} 38.Qc4 
{[%clk 00:12:02][%emt 00:01:36]} 38...g5 {[%clk 00:05:57][%emt 00:01:04]} 
39.Qxc6 {[%clk 00:11:44][%emt 00:00:48]} 39...Kg7 {[%clk 00:06:25][%emt
00:00:02]} 40.Qc2 {[%clk 00:10:28][%emt 00:01:46]} 40...Qe5 {[%clk
00:05:12][%emt 00:01:44]} 41.Ne2 {[%clk 00:08:09][%emt 00:02:48]} 41...h5 
{[%clk 00:05:31][%emt 00:00:11]} 42.Qc3 {[%clk 00:08:03] [%emt 00:00:37]} 1-0

[Event "FIDE Grand Swiss 2023"]
[Site "Villa Marina, Douglas, Isle of Man"]
[Date "2023.11.01"]
[Round "7.13"]
[White "Narayanan.S.L"]
[Black "Aronian, Levon"]
[Result "0-1"]
[WhiteElo "2651"]
[BlackElo "2742"]
[EventDate "2023.10.25"]
[ECO "D38"]
[PlyCount "112"]
[BlackClock "00:55:27"]
[BlackFideId "13300474"]
[TimeControl "40/100 + 20/50 + 15 + 30s/move"]
[WhiteClock "00:40:12"]
[WhiteFideId "5058422"]

1.d4 {[%clk 01:40:56][%emt 00:00:02]} 1...Nf6 {[%clk 01:40:55][%emt 00:00:06]} 
2.c4 {[%clk 01:41:21][%emt 00:00:05]} 2...e6 {[%clk 01:41:20][%emt 00:00:05]} 
3.Nf3 {[%clk 01:41:46][%emt 00:00:05]} 3...d5 {[%clk 01:41:45][%emt 00:00:05]} 
4.Nc3 {[%clk 01:42:07][%emt 00:00:08]} 4...Bb4 {[%clk 01:42:10][%emt 00:00:06]} 
5.Qb3 {[%clk 01:42:29][%emt 00:00:08]} 5...c5 {[%clk 01:41:50][%emt 00:00:49]} 
6.dxc5 {[%clk 01:42:54][%emt 00:00:06]} 6...Nc6 {[%clk 01:41:14][%emt 00:01:06]} 
7.e3 {[%clk 01:43:18][%emt 00:00:05]} 7...O-O {[%clk 01:40:42][%emt 00:01:02]} 
8.Be2 {[%clk 01:43:43][%emt 00:00:05]} 8...Bxc5 {[%clk 01:36:52][%emt 00:04:22]} 
9.O-O {[%clk 01:44:05][%emt 00:00:07]} 9...dxc4 {[%clk 01:32:20][%emt 00:05:02]} 
10.Qxc4 {[%clk 01:44:29][%emt 00:00:06]} 10...Qe7 {[%clk 01:32:36][%emt
00:00:14]} 11.e4 {[%clk 01:44:53][%emt 00:00:06]} 11...Nd7 {[%clk 01:25:17][%emt
00:07:49]} 12.Bg5 {[%clk 01:44:35][%emt 00:00:47]} 12...f6 {[%clk 01:22:30][%emt
00:03:18]} 13.Bh4 {[%clk 01:32:36][%emt 00:12:28]} 13...Kh8 {[%clk
01:18:51][%emt 00:04:10]} 14.Na4 {[%clk 01:30:10][%emt 00:02:56]} 14...Bd6 
{[%clk 01:18:52][%emt 00:00:29]} 15.Rfd1 {[%clk 01:29:58][%emt 00:00:41]} 
15...Rd8 {[%clk 01:18:23][%emt 00:00:59]} 16.a3 {[%clk 01:21:07][%emt 00:09:22]} 
16...e5 {[%clk 01:14:23][%emt 00:04:30]} 17.b4 {[%clk 01:08:29][%emt 00:13:07]} 
17...Nf8 {[%clk 01:09:53][%emt 00:05:01]} 18.Nc3 {[%clk 01:00:34][%emt
00:08:25]} 18...Be6 {[%clk 01:04:28][%emt 00:05:55]} 19.Nd5 {[%clk
01:00:42][%emt 00:00:21]} 19...Qf7 {[%clk 01:04:49][%emt 00:00:09]} 20.Bg3 
{[%clk 00:55:14][%emt 00:05:58]} 20...Ng6 {[%clk 00:55:36][%emt 00:09:43]} 
21.Qa2 {[%clk 00:50:45][%emt 00:04:59]} 21...a5 {[%clk 00:45:55][%emt 00:10:12]} 
22.b5 {[%clk 00:50:03][%emt 00:01:12]} 22...Nce7 {[%clk 00:45:23][%emt
00:01:02]} 23.Bc4 {[%clk 00:48:26][%emt 00:02:06]} 23...Rac8 {[%clk
00:45:09][%emt 00:00:45]} 24.h4 {[%clk 00:33:53][%emt 00:15:03]} 24...Bc5 
{[%clk 00:42:19][%emt 00:03:20]} 25.Ne3 {[%clk 00:27:48][%emt 00:06:34]} 
25...Nf8 {[%clk 00:39:25][%emt 00:03:24]} 26.Bxe6 {[%clk 00:27:23][%emt
00:00:55]} 26...Qxe6 {[%clk 00:35:00][%emt 00:04:55]} 27.Rxd8 {[%clk
00:25:26][%emt 00:02:28]} 27...Rxd8 {[%clk 00:35:14][%emt 00:00:16]} 28.Nc4 
{[%clk 00:24:33][%emt 00:01:22]} 28...b6 {[%clk 00:31:18][%emt 00:04:27]} 
29.Qc2 {[%clk 00:22:19][%emt 00:02:43]} 29...h6 {[%clk 00:26:21][%emt 00:05:28]} 
30.Nxa5 {[%clk 00:16:05][%emt 00:06:43]} 30...Rc8 {[%clk 00:26:15][%emt
00:00:36]} 31.Nb3 {[%clk 00:10:24][%emt 00:06:11]} 31...Bxa3 {[%clk
00:22:33][%emt 00:04:14]} 32.Qb1 {[%clk 00:10:21][%emt 00:00:32]} 32...Bd6 
{[%clk 00:19:18][%emt 00:03:44]} 33.Qd3 {[%clk 00:10:19][%emt 00:00:32]} 
33...Bb4 {[%clk 00:17:35][%emt 00:02:13]} 34.Rc1 {[%clk 00:10:36][%emt
00:00:14]} 34...Qd7 {[%clk 00:17:00][%emt 00:01:04]} 35.Qe2 {[%clk
00:09:56][%emt 00:01:11]} 35...Rxc1+ {[%clk 00:17:24][%emt 00:00:06]} 36.Nxc1 
{[%clk 00:10:22][%emt 00:00:03]} 36...Nc8 {[%clk 00:17:50][%emt 00:00:05]} 
37.Qc4 {[%clk 00:04:58][%emt 00:05:54]} 37...Bc5 {[%clk 00:16:45][%emt
00:01:35]} 38.Nd3 {[%clk 00:05:14][%emt 00:00:13]} 38...Nd6 {[%clk
00:16:57][%emt 00:00:18]} 39.Qa4 {[%clk 00:05:17][%emt 00:00:27]} 39...Nxb5 
{[%clk 00:13:39][%emt 00:03:48]} 40.Nxc5 {[%clk 00:05:25][%emt 00:00:23]} 
40...bxc5 {[%clk 00:14:04][%emt 00:00:05]} 41.Qc4 {[%clk 00:04:15][%emt
00:01:40]} 41...Ne6 {[%clk 00:11:53][%emt 00:02:41]} 42.h5 {[%clk 00:04:30][%emt
00:00:14]} 42...Qd1+ {[%clk 00:10:43][%emt 00:01:40]} 43.Kh2 {[%clk
00:04:52][%emt 00:00:08]} 43...Nbd4 {[%clk 00:09:45][%emt 00:01:29]} 44.Qa6 
{[%clk 00:02:21][%emt 00:03:01]} 44...Nxf3+ {[%clk 00:06:02][%emt 00:04:12]} 
45.gxf3 {[%clk 00:02:17][%emt 00:00:34]} 45...Qd7 {[%clk 00:06:28][%emt
00:00:04]} 46.Qa8+ {[%clk 00:46:22][%emt 00:06:25]} 46...Kh7 {[%clk
00:56:25][%emt 00:00:34]} 47.Qd5 {[%clk 00:46:37][%emt 00:00:15]} 47...Qc8 
{[%clk 00:56:17][%emt 00:00:37]} 48.f4 {[%clk 00:46:44][%emt 00:00:23]} 
48...Nxf4 {[%clk 00:56:11][%emt 00:00:35]} 49.Bxf4 {[%clk 00:47:08][%emt
00:00:06]} 49...exf4 {[%clk 00:56:39][%emt 00:00:03]} 50.Qc4 {[%clk
00:46:50][%emt 00:00:48]} 50...Qc7 {[%clk 00:56:13][%emt 00:00:57]} 51.Kg2 
{[%clk 00:45:19][%emt 00:01:59]} 51...Qe5 {[%clk 00:56:15][%emt 00:00:29]} 
52.Qe2 {[%clk 00:40:07][%emt 00:05:42]} 52...f5 {[%clk 00:56:17][%emt 00:00:28]} 
53.f3 {[%clk 00:40:24][%emt 00:00:14]} 53...fxe4 {[%clk 00:56:27][%emt
00:00:19]} 54.fxe4 {[%clk 00:40:49][%emt 00:00:05]} 54...Qg5+ {[%clk
00:56:50][%emt 00:00:07]} 55.Kf1 {[%clk 00:41:14][%emt 00:00:05]} 55...f3 
{[%clk 00:55:01][%emt 00:02:20]} 56.Qxf3 {[%clk 00:41:38][%emt 00:00:06]} 
56...Qf6 {[%clk 00:55:27][%emt 00:00:03]} 0-1

[Event "FIDE Grand Swiss 2023"]
[Site "Villa Marina, Douglas, Isle of Man"]
[Date "2023.11.01"]
[Round "7.14"]
[White "Duda, Jan-Krzysztof"]
[Black "Melkumyan, Hrant"]
[Result "1-0"]
[WhiteElo "2726"]
[BlackElo "2650"]
[EventDate "2023.10.25"]
[ECO "C65"]
[PlyCount "83"]
[BlackClock "00:03:13"]
[BlackFideId "13302485"]
[TimeControl "40/100 + 20/50 + 15 + 30s/move"]
[WhiteClock "00:02:25"]
[WhiteFideId "1170546"]

1.e4 {[%clk 01:40:55][%emt 00:00:03]} 1...e5 {[%clk 01:40:50][%emt 00:00:10]} 
2.Nf3 {[%clk 01:41:20][%emt 00:00:05]} 2...Nc6 {[%clk 01:41:08][%emt 00:00:12]} 
3.Bb5 {[%clk 01:41:45][%emt 00:00:05]} 3...Nf6 {[%clk 01:41:20][%emt 00:00:18]} 
4.d3 {[%clk 01:42:10][%emt 00:00:05]} 4...Bc5 {[%clk 01:41:31][%emt 00:00:20]} 
5.Bxc6 {[%clk 01:42:23][%emt 00:00:17]} 5...dxc6 {[%clk 01:41:51][%emt
00:00:10]} 6.O-O {[%clk 01:42:46][%emt 00:00:07]} 6...Nd7 {[%clk 01:40:59][%emt
00:01:22]} 7.c3 {[%clk 01:42:32][%emt 00:00:44]} 7...O-O {[%clk 01:40:11][%emt
00:01:17]} 8.d4 {[%clk 01:42:34][%emt 00:00:29]} 8...Bd6 {[%clk 01:40:00][%emt
00:00:40]} 9.Bg5 {[%clk 01:42:19][%emt 00:00:45]} 9...Qe8 {[%clk 01:37:56][%emt
00:02:35]} 10.Re1 {[%emt 00:04:48]} 10...b6 {[%clk 01:35:00][%emt 00:01:14]} 
11.Nbd2 {[%clk 01:39:00][%emt 00:01:42]} 11...Qe6 {[%clk 01:26:42][%emt
00:08:48]} 12.dxe5 {[%clk 01:34:06][%emt 00:05:25]} 12...Nxe5 {[%clk
01:26:55][%emt 00:00:17]} 13.Nxe5 {[%clk 01:34:21][%emt 00:00:15]} 13...Qxe5 
{[%clk 01:25:08][%emt 00:02:16]} 14.Nf3 {[%clk 01:34:04][%emt 00:00:48]} 
14...Qe8 {[%clk 01:21:14][%emt 00:04:23]} 15.e5 {[%clk 01:32:41][%emt 00:01:54]} 
15...Be7 {[%clk 01:20:53][%emt 00:00:50]} 16.Qd3 {[%clk 01:28:51][%emt
00:04:19]} 16...Be6 {[%clk 01:10:55][%emt 00:10:29]} 17.Qe4 {[%clk
01:22:16][%emt 00:07:05]} 17...c5 {[%clk 00:58:31][%emt 00:12:55]} 18.Qh4 
{[%clk 01:20:05][%emt 00:02:40]} 18...Bxg5 {[%clk 00:58:49][%emt 00:00:12]} 
19.Nxg5 {[%clk 01:20:27][%emt 00:00:09]} 19...h6 {[%clk 00:57:47][%emt
00:01:31]} 20.Ne4 {[%clk 01:20:11][%emt 00:00:46]} 20...Kh8 {[%clk
00:54:57][%emt 00:03:21]} 21.g4 {[%clk 01:09:10][%emt 00:11:31]} 21...Bd5 
{[%clk 00:44:44][%emt 00:10:43]} 22.Nf6 {[%clk 01:04:53][%emt 00:04:47]} 
22...Qe6 {[%clk 00:44:48][%emt 00:00:25]} 23.Re3 {[%clk 00:58:31][%emt
00:06:53]} 23...Bb7 {[%clk 00:43:22][%emt 00:01:56]} 24.Qh5 {[%clk
00:52:42][%emt 00:06:19]} 24...Qc6 {[%clk 00:35:07][%emt 00:08:45]} 25.f3 
{[%clk 00:51:50][%emt 00:01:21]} 25...Qe6 {[%clk 00:35:05][%emt 00:00:32]} 
26.Ne4 {[%clk 00:42:21][%emt 00:09:59]} 26...Rad8 {[%clk 00:33:28][%emt
00:02:07]} 27.Qf5 {[%clk 00:34:32][%emt 00:08:19]} 27...Rfe8 {[%clk
00:30:39][%emt 00:03:18]} 28.Qxe6 {[%clk 00:32:14][%emt 00:02:50]} 28...Rxe6 
{[%clk 00:31:01][%emt 00:00:07]} 29.Nf2 {[%clk 00:31:57][%emt 00:00:48]} 
29...Rd2 {[%clk 00:26:53][%emt 00:04:37]} 30.Rd1 {[%clk 00:31:30][%emt
00:00:57]} 30...Rxb2 {[%clk 00:26:23][%emt 00:01:00]} 31.Rd7 {[%clk
00:31:49][%emt 00:00:11]} 31...f6 {[%clk 00:25:57][%emt 00:00:56]} 32.Nd3 
{[%clk 00:28:54][%emt 00:03:26]} 32...Rb1+ {[%clk 00:20:50][%emt 00:05:37]} 
33.Kf2 {[%clk 00:28:32][%emt 00:00:51]} 33...fxe5 {[%clk 00:21:02][%emt
00:00:18]} 34.Nxe5 {[%clk 00:27:34][%emt 00:01:28]} 34...Kh7 {[%clk
00:14:24][%emt 00:07:08]} 35.Rxc7 {[%clk 00:21:59][%emt 00:06:05]} 35...Ba6 
{[%clk 00:14:52][%emt 00:00:02]} 36.Rxa7 {[%clk 00:07:17][%emt 00:15:13]} 
36...Rb2+ {[%clk 00:15:15][%emt 00:00:07]} 37.Kg3 {[%clk 00:07:43][%emt
00:00:03]} 37...Rxa2 {[%clk 00:15:38][%emt 00:00:07]} 38.c4 {[%clk
00:04:37][%emt 00:03:36]} 38...Ra4 {[%clk 00:13:34][%emt 00:02:34]} 39.f4 
{[%clk 00:03:28][%emt 00:01:39]} 39...Bb5 {[%clk 00:09:05][%emt 00:05:00]} 
40.Rc7 {[%clk 00:03:41][%emt 00:00:17]} 40...Be8 {[%clk 00:09:10][%emt
00:00:24]} 41.f5 {[%clk 00:03:22][%emt 00:00:49]} 41...Rf6 {[%clk 00:06:33][%emt
00:03:07]} 42.Rc8 {[%clk 00:02:25][%emt 00:01:27]} 1-0

[Event "FIDE Grand Swiss 2023"]
[Site "Villa Marina, Douglas, Isle of Man"]
[Date "2023.11.01"]
[Round "7.15"]
[White "Najer, Evgeniy"]
[Black "Abdusattorov, Nodirbek"]
[Result "1/2-1/2"]
[WhiteElo "2648"]
[BlackElo "2716"]
[EventDate "2023.10.25"]
[ECO "B12"]
[PlyCount "85"]
[BlackClock "01:00:48"]
[BlackFideId "14204118"]
[TimeControl "40/100 + 20/50 + 15 + 30s/move"]
[WhiteClock "00:31:33"]
[WhiteFideId "4118987"]

1.e4 {[%clk 01:40:57][%emt 00:00:02]} 1...c6 {[%clk 01:40:46][%emt 00:00:14]} 
2.d4 {[%clk 01:41:14][%emt 00:00:13]} 2...d5 {[%clk 01:41:08][%emt 00:00:09]} 
3.e5 {[%clk 01:41:03][%emt 00:00:41]} 3...Bf5 {[%clk 01:41:16][%emt 00:00:21]} 
4.Nf3 {[%clk 01:40:38][%emt 00:00:55]} 4...e6 {[%clk 01:41:20][%emt 00:00:26]} 
5.Be2 {[%clk 01:40:57][%emt 00:00:10]} 5...Ne7 {[%clk 01:41:34][%emt 00:00:17]} 
6.c3 {[%clk 01:40:45][%emt 00:00:43]} 6...Ng6 {[%clk 01:40:30][%emt 00:01:34]} 
7.O-O {[%clk 01:39:33][%emt 00:01:41]} 7...Nd7 {[%clk 01:40:50][%emt 00:00:10]} 
8.Ne1 {[%clk 01:28:56][%emt 00:11:07]} 8...h5 {[%clk 01:36:35][%emt 00:04:46]} 
9.Bd3 {[%clk 01:27:17][%emt 00:02:09]} 9...Nh4 {[%clk 01:35:48][%emt 00:01:17]} 
10.a4 {[%clk 01:25:03][%emt 00:02:44]} 10...c5 {[%clk 01:32:14][%emt 00:04:04]} 
11.a5 {[%clk 01:23:06][%emt 00:02:28]} 11...Bxd3 {[%clk 01:29:46][%emt
00:02:57]} 12.Nxd3 {[%clk 01:17:08][%emt 00:06:28]} 12...Nf5 {[%clk
01:29:56][%emt 00:00:19]} 13.Be3 {[%clk 01:14:25][%emt 00:03:13]} 13...Rc8 
{[%clk 01:26:59][%emt 00:03:28]} 14.Nd2 {[%clk 01:14:11][%emt 00:00:44]} 
14...g6 {[%clk 01:22:53][%emt 00:04:36]} 15.Nf3 {[%clk 01:11:47][%emt 00:02:54]} 
15...Be7 {[%clk 01:22:10][%emt 00:01:12]} 16.Qd2 {[%clk 00:55:27][%emt
00:16:50]} 16...cxd4 {[%clk 01:09:20][%emt 00:13:20]} 17.cxd4 {[%clk
00:50:46][%emt 00:05:12]} 17...O-O {[%clk 01:06:27][%emt 00:03:23]} 18.Rfc1 
{[%clk 00:43:07][%emt 00:08:09]} 18...Nb8 {[%clk 01:05:39][%emt 00:01:18]} 
19.Rxc8 {[%clk 00:41:09][%emt 00:02:27]} 19...Qxc8 {[%clk 01:06:08][%emt
00:00:02]} 20.Rc1 {[%clk 00:41:17][%emt 00:00:22]} 20...Qd7 {[%clk
01:06:30][%emt 00:00:08]} 21.Bg5 {[%clk 00:35:33][%emt 00:06:13]} 21...Bxg5 
{[%clk 00:50:22][%emt 00:16:38]} 22.Qxg5 {[%clk 00:35:57][%emt 00:00:07]} 
22...Rc8 {[%clk 00:50:46][%emt 00:00:06]} 23.Nc5 {[%clk 00:26:29][%emt
00:09:58]} 23...Qe7 {[%clk 00:40:53][%emt 00:10:23]} 24.Qxe7 {[%clk
00:25:59][%emt 00:01:00]} 24...Nxe7 {[%clk 00:41:21][%emt 00:00:02]} 25.Kf1 
{[%clk 00:19:49][%emt 00:06:39]} 25...Na6 {[%clk 00:34:24][%emt 00:07:28]} 
26.Nb3 {[%clk 00:20:06][%emt 00:00:13]} 26...Rxc1+ {[%clk 00:34:49][%emt
00:00:05]} 27.Nxc1 {[%clk 00:20:32][%emt 00:00:03]} 27...Kf8 {[%clk
00:35:13][%emt 00:00:06]} 28.Ke2 {[%clk 00:18:47][%emt 00:02:15]} 28...Ke8 
{[%clk 00:35:02][%emt 00:00:41]} 29.Nb3 {[%clk 00:17:41][%emt 00:01:36]} 
29...Nf5 {[%clk 00:34:12][%emt 00:01:20]} 30.Kd3 {[%clk 00:15:42][%emt
00:02:30]} 30...Kd7 {[%clk 00:33:50][%emt 00:00:52]} 31.Ng5 {[%clk
00:15:38][%emt 00:00:33]} 31...Nh6 {[%clk 00:34:03][%emt 00:00:17]} 32.h3 
{[%clk 00:12:08][%emt 00:04:01]} 32...Kc6 {[%clk 00:34:02][%emt 00:00:31]} 
33.Kc3 {[%clk 00:12:04][%emt 00:00:34]} 33...Kb5 {[%clk 00:29:08][%emt
00:05:23]} 34.g3 {[%clk 00:08:26][%emt 00:04:08]} 34...Ka4 {[%clk 00:26:26][%emt
00:03:13]} 35.f3 {[%clk 00:07:55][%emt 00:01:01]} 35...b6 {[%clk 00:20:29][%emt
00:06:27]} 36.axb6 {[%clk 00:08:21][%emt 00:00:04]} 36...axb6 {[%clk
00:20:56][%emt 00:00:03]} 37.g4 {[%clk 00:03:36][%emt 00:05:14]} 37...Nc7 
{[%clk 00:20:52][%emt 00:00:34]} 38.Nc1 {[%clk 00:02:26][%emt 00:01:40]} 
38...Nb5+ {[%clk 00:10:50][%emt 00:10:33]} 39.Kd3 {[%clk 00:02:52][%emt
00:00:04]} 39...Kb4 {[%clk 00:11:08] [%emt 00:00:12]} 40.Nh7 {[%clk 00:02:31]
[%emt 00:00:50]} 40...Ng8 {[%clk 00:11:31] [%emt 00:00:07]} 41.Ng5 {[%clk
00:44:29] [%emt 00:08:32]} 41...Nh6 {[%clk 00:11:08][%emt 00:00:12]} 42.Nh7 
{[%clk 00:02:31][%emt 00:00:50]} 42...Ng8 {[%clk 00:11:31][%emt 00:00:07]} 
43.Ng5 {[%clk 00:44:29][%emt 00:08:32]} 1/2-1/2